Cogmind - Beta 16 @@@ ROGUE MODE // 2026.01.10 @ 18:27:10 Player: Lunishko Result: Destroyed by H-77 Assassin with Coil Gun Performance ------------- Evolutions (6) 3000 Regions Visited (9) 1800 Robots Destroyed (46) 230 Value Destroyed (2148) 2148 Prototype IDs (7) 140 Alien Tech Used (0) 0 Bonus (876) 876 TOTAL SCORE: 8194 Bonus ------- Follower Combat Kills 146 Registered with UFD 300 Met Optimus in HQ 500 Friendly Fire -70 Cogmind --------- Core Integrity 0/1150 Matter 105/300 Energy 170/170 System Corruption 17% Temperature Cool (0) Movement Walking (120) Location -4/Factory Parts ------- > --- POWER (3) -------- Light Antimatter Reactor > --- PROPULSION (6) --- Myomer Leg Myomer Leg > --- UTILITY (8) ------ Improved Heat Sink Improved Heat Sink Improved Heat Sink Large Storage Unit Visual Processing Unit Improved Targeting Computer Improved Target Analyzer Improved Target Analyzer > --- WEAPON (2) ------- High-powered Shotgun Coil Gun > --- INVENTORY (15) --- Heavy Disruptor Cannon Coil Gun Dirty Datajack (14) Improved Remote Datajack Peak State ------------ > --- POWER ------------ Light Ion Engine Light Angular Momentum Engine Backup Power VII > --- PROPULSION ------- Shield Leg Shield Leg Shield Leg Shield Leg > --- UTILITY ---------- Large Storage Unit Energy Well Structural Scanner Visual Processing Unit Advanced Sensor Array Targeting Computer Advanced Reaction Control System Makeshift Hacking Suite > --- WEAPON ----------- HERF Cannon Hardcell Cannon > --- INVENTORY -------- Micro Fission Core Advanced Reaction Control System Long-range Proton Cannon Heavy Disruptor Cannon Coil Gun Dirty Datajack Ripper [Rating: 85] Favorites ----------- Power Improved Deuterium Engine Engine Improved Deuterium Engine Power Core Backup Power VII Reactor Light Antimatter Reactor Propulsion Shield Leg Treads Light Treads Leg Shield Leg Hover Unit Antigrav System Flight Unit Cooled Cesium-ion Thruster Utility Makeshift Hacking Suite Device Structural Scanner Storage Large Storage Unit Processor Targeting Computer Hackware Makeshift Hacking Suite Protection Improved Medium Armor Plating Weapon Ripper Energy Gun Subdweller Laser Energy Cannon Long-range Proton Cannon Ballistic Gun Subdweller Machine Gun Ballistic Cannon Hardcell Cannon Launcher Heavy Rocket Launcher Slashing Weapon Ripper Special Melee Weapon Dirty Datajack Build | -11 -10 -10 -7 -5 -5 -5 -5 -5 -4 ------- Run | Yrd Mat Sub Scr Fac Was Fac Ext Cet Fac Slots Evolved 12 | . . . . 10 . . . . 2 Power 2 | . . . . 1 . . . . 1 Propulsion 4 | . . . . 3 . . . . 1 Utility 6 | . . . . 6 . . . . . Weapon . | . . . . . . . . . . Parts Attached 93 | 6 . 4 11 8 . 3 30 . 31 Power 15 | 1 . 1 1 1 . . 6 . 5 Engine 8 | 1 . 1 1 1 . . 3 . 1 Core 6 | . . . . . . . 3 . 3 Reactor 1 | . . . . . . . . . 1 Propulsion 22 | 2 . . 3 2 . . 8 . 7 Treads 2 | 2 . . . . . . . . . Leg 15 | . . . 3 1 . . 5 . 6 Wheel . | . . . . . . . . . . Hover 1 | . . . . . . . . . 1 Flight 4 | . . . . 1 . . 3 . . Utility 33 | 1 . 1 4 4 . 2 9 . 12 Device 19 | . . 1 . 3 . 2 5 . 8 Storage 5 | 1 . . 3 . . . . . 1 Processor 7 | . . . . 1 . . 3 . 3 Hackware 1 | . . . 1 . . . . . . Protection 1 | . . . . . . . 1 . . Artifact . | . . . . . . . . . . Weapon 23 | 2 . 2 3 1 . 1 7 . 7 Energy Gun 5 | 1 . 1 1 . . . 2 . . Energy Cannon 3 | . . . . . . . 1 . 2 Ballistic Gun 8 | 1 . 1 . . . . 2 . 4 Ballistic Cannon 1 | . . . . . . . . . 1 Launcher 4 | . . . 1 1 . 1 1 . . Special Weapon . | . . . . . . . . . . Impact Weapon . | . . . . . . . . . . Slashing Weapon 1 | . . . 1 . . . . . . Piercing Weapon . | . . . . . . . . . . Special Melee Weapon 1 | . . . . . . . 1 . . Unidentified Prototypes 1 | . . . . 1 . . . . . Parts Lost 51 | . . . . . . 1 22 3 25 Power 12 | . . . . . . 1 5 . 6 Propulsion 16 | . . . . . . . 9 2 5 Utility 15 | . . . . . . . 5 1 9 Weapon 8 | . . . . . . . 3 . 5 Highest Loss Streak 15 | . . . . . . 1 6 3 15 To Critical Strikes 1 | . . . . . . . . . 1 Average Backups 8 | 1 1 4 7 10 10 11 12 4 5 Power . | . 1 1 . . . . . 1 . Propulsion . | . . . . 1 1 1 2 . . Utility . | . . . . . . . . 1 . Weapon 5 | . . 3 5 6 7 7 7 1 2 Tool/Special . | . . . . . . . . . . Unused Backups 10 | . . 1 3 . . . 5 . 1 Power 1 | . . 1 . . . . . . . Propulsion 1 | . . . . . . . 1 . . Utility . | . . . . . . . . . . Weapon 6 | . . . 3 . . . 3 . . Tool/Special 2 | . . . . . . . 1 . 1 Average Slot Usage (%) 85 | . 85 90 94 70 87 89 85 45 74 Engine 9 | . 14 14 14 10 10 9 4 . 5 Core 1 | . . . . . . . 1 . 4 Treads 8 | . 28 28 19 . . . . . . Leg 14 | . . . 8 19 23 23 22 2 16 Flight 1 | . . . . . 5 5 3 4 . Device 8 | . . 5 1 11 17 24 13 7 10 Storage 9 | . 14 14 14 5 5 5 4 . 7 Processor 6 | . . . . 2 5 5 14 23 12 Hackware 7 | . . . 12 5 5 5 5 5 4 Energy Gun 3 | . 14 14 8 . . . . . . Ballistic Gun 3 | . 14 14 7 . . . . . 1 Launcher 3 | . . . 4 9 11 3 4 . . Slashing Weapon 2 | . . . 3 1 . 3 1 1 3 Peak Build Rating 85 | 6 6 12 27 56 56 60 70 31 85 Average Rating 40 | 4 6 8 16 42 55 56 53 24 66 On Entrance 26 | . 6 6 12 27 56 56 55 31 17 Avg Prop Armor Cover (%) 6 | . . . 8 4 5 4 7 5 10 Naked Turns . | . . . . . . . . . . Heaviest Build 68 | 13 13 20 49 68 68 68 59 9 65 Greatest Support 104 | 40 40 40 40 74 74 74 104 15 100 Greatest Overweight (x) 14 | 2 . . 1 1 1 1 2 1 14 Average Overweight (x) . | . . . . . . . . . . Largest Inventory Capacity 20 | 8 8 8 20 15 15 15 15 5 15 Average Capacity 12 | 6 8 8 9 15 15 15 14 5 14 Most Carried 15 | 2 1 8 13 13 11 12 15 5 13 Average Carried 8 | 1 1 5 7 10 10 11 12 4 6 Final Capacity 15 | 8 8 8 15 15 15 15 5 5 15 Final Carried 13 | 1 1 6 13 10 10 12 5 5 5 Class Distribution -------------------- 42% | Scavenger-Mutant 29% | Mutant 27% | Derelict-Mutant Dominant Class ---------------- Mutant | -10/Materials Mutant | -10/Subcaves Mutant | -7/Scraptown Derelict-Mutant | -5/Factory Derelict-Mutant | -5/Waste Derelict-Mutant | -5/Factory Scavenger-Mutant | -5/Extension Scavenger-Mutant | -5/Cetus Scavenger-Mutant | -4/Factory Resources | -11 -10 -10 -7 -5 -5 -5 -5 -5 -4 ----------- Run | Yrd Mat Sub Scr Fac Was Fac Ext Cet Fac Matter Collected 2725 | 128 26 148 170 63 457 2 1227 . 504 Remotely 661 | . . . . . . . 661 . . Salvage Created 2718 | . 26 33 . 71 1388 71 647 . 482 Parts 82 | . 4 1 . 3 1 9 38 . 26 Haulers Intercepted . | . . . . . . . . . . Recyclers Shooed . | . . . . . . . . . . Parts Field Recycled . | . . . . . . . . . . Retrieved Matter . | . . . . . . . . . . Parts Self-Destructed 7 | . . 7 . . . . . . . Prevented . | . . . . . . . . . . Parts Restored . | . . . . . . . . . . Kills | -11 -10 -10 -7 -5 -5 -5 -5 -5 -4 ------- Run | Yrd Mat Sub Scr Fac Was Fac Ext Cet Fac Combat Hostiles Destroyed 38 | . . 1 . 2 6 5 15 . 9 Melee 2 | . . . . . . . 1 . 1 Guns 6 | . . 1 . . . . 1 . 4 Cannons 3 | . . . . . . . . . 3 AOE 26 | . . . . 2 6 5 13 . . Classes Destroyed 12 | . 1 1 . 1 1 2 6 . . Builder 4 | . . . . . . . 4 . . Tunneler 1 | . 1 . . . . . . . . Recycler 1 | . . . . . . . 1 . . Watcher 2 | . . . . . . . 1 . 1 Swarmer 8 | . . . . . . 4 4 . . Grunt 6 | . . . . . . . 6 . . Sentry 3 | . . . . . . . 3 . . Hunter 6 | . . . . 2 . . 1 . 3 Programmer 7 | . . . . . . 1 . . 6 Compactor 6 | . . . . . 6 . . . . Subdweller 1 | . . 1 . . . . . . . Savage 1 | . . . . . . . 1 . . Best Kill Streak 6 | . 1 1 . 2 3 5 6 . 3 Combat Bots Only 5 | . . 1 . 2 3 5 5 . 3 Max Kills in Single Turn 4 | . 1 1 . 2 1 2 4 . 1 Gunslinging . | . . . . . . . . . . Exploded 2 | . . . . 2 1 2 2 . . Melee 1 | . . . . . . . 1 . 1 Uniques/NPCs Destroyed . | . . . . . . . . . . Combat | -11 -10 -10 -7 -5 -5 -5 -5 -5 -4 -------- Run | Yrd Mat Sub Scr Fac Was Fac Ext Cet Fac Hostile Shots Fired 520 | . . 10 . 9 . 18 149 17 317 Missed 174 | . . 2 . 2 . 4 66 7 93 Hits 346 | . . 8 . 7 . 14 83 10 224 Projectile 346 | . . 8 . 7 . 14 83 10 224 Critical Strikes 11 | . . . . . . . 3 . 8 Part Disruptions 3 | . . . . . . . . . 3 Damage Taken 6576 | . . 161 . 146 . 266 1625 266 4112 Core 1523 | . . 21 . . . . 188 162 1152 Absorbed by Shields 138 | . . . . . . . 138 . . Ignored by Resistances 47 | . . . . . . 47 . . . Core Remaining (%) 85 | 100 . . 91 . . . . 65 . Volleys Fired 105 | . 1 9 . 1 14 3 27 . 50 Largest 2 | . 2 2 . 2 2 2 2 . 2 Hottest 143 | . 70 80 . 78 78 75 108 . 143 Shots Fired 181 | . 2 18 . 2 28 4 42 . 85 Gun 69 | . 2 18 . . . . 8 . 41 Cannon 44 | . . . . . . . . . 44 Launcher 68 | . . . . 2 28 4 34 . . Special . | . . . . . . . . . . Kinetic 80 | . 1 9 . . . . 7 . 63 Thermal 11 | . 1 9 . . . . 1 . . Explosive 68 | . . . . 2 28 4 34 . . Electromagnetic 22 | . . . . . . . . . 22 Robot Hit Streak 14 | . 1 11 . 1 13 3 14 . 9 Robot Miss Streak 4 | . . 4 . 1 1 . 4 . 3 Penetration Max 1 | . . . . . . . . . 1 Secondary Targets . | . . . . . . . . . . Shots Hit Robots 133 | . 1 13 . 1 18 3 29 . 68 Core Hits 103 | . 1 4 . 4 20 6 43 . 25 Critical Kills 1 | . . . . . . . . . 1 Critical Parts Destroyed 2 | . . . . . . . . . 2 Critical Strikes 8 | . 1 . . . . . 1 . 6 Burn 1 | . 1 . . . . . . . . Destroy 3 | . . . . . . . . . 3 Blast 2 | . . . . . . . . . 2 Sever 2 | . . . . . . . 1 . 1 Melee Attacks 43 | . . . . . . 5 23 2 13 Impact . | . . . . . . . . . . Slashing 37 | . . . . . . 5 23 2 7 Piercing 6 | . . . . . . . . . 6 Sneak Attacks 3 | . . . . . . . 1 . 2 Combat Hostiles . | . . . . . . . . . . Follow-up Attacks . | . . . . . . . . . . Damage Inflicted 8851 | . 13 149 . 233 3372 450 2591 . 2043 Guns 1040 | . 13 149 . . . . 61 . 817 Cannons 989 | . . . . . . . . . 989 Explosions 6374 | . . . . 233 3372 417 2267 . 85 Melee 441 | . . . . . . 33 263 . 145 Ramming 7 | . . . . . . . . . 7 Kinetic 1589 | . . 75 . . . . 41 . 1473 Thermal 391 | . 13 74 . . . . 219 . 85 Explosive 6090 | . . . . 233 3372 417 2068 . . Electromagnetic 333 | . . . . . . . . . 333 Impact . | . . . . . . . . . . Slashing 425 | . . . . . . 33 263 . 129 Piercing 16 | . . . . . . . . . 16 Highest Corruption 17 | . . . . . 13 13 15 15 17 Average Corruption 12 | . . . . . 10 11 13 15 12 Corruption Purged 5 | . . . . . . 5 . . . Corruption Blocked . | . . . . . . . . . . Effects 129 | . . . . . 8 17 73 2 29 Message Errors 25 | . . . . . 3 4 10 . 8 Matter Fused 45 | . . . . . 1 6 29 2 7 Heat Flow Errors 16 | . . . . . . 3 7 . 6 Energy Discharges 10 | . . . . . 2 2 6 . . Parts Rejected 2 | . . . . . 1 . 1 . . Parts Fused 1 | . . . . . . . 1 . . Data Loss (minor) 14 | . . . . . 1 1 9 . 3 Data Loss (major) 4 | . . . . . . . 4 . . Misfires 4 | . . . . . . . 3 . 1 Alerts 3 | . . . . . . 1 2 . . Misdirections 1 | . . . . . . . . . 1 Weapon Failures 4 | . . . . . . . 1 . 3 Overload Shots . | . . . . . . . . . . Overflow Damage 154 | . . . . . . 7 60 . 87 Projectiles 52 | . . . . . . . . . 52 Explosions 98 | . . . . . . 7 56 . 35 Melee 4 | . . . . . . . 4 . . Knockbacks 11 | . . . . . . . . . 11 Impact . | . . . . . . . . . . Kinetic 11 | . . . . . . . . . 11 Secondary . | . . . . . . . . . . Self-Inflicted Damage 464 | . . . . 63 . 46 272 . 83 Shots 14 | . . . . 2 . 2 9 . 1 Rammed 11 | . . . . . . . . . 11 Targets Rammed 11 | . . . . . . . . . 11 Kicked . | . . . . . . . . . . Crushed . | . . . . . . . . . . Highest Temperature 340 | . 30 . . . . 199 253 . 340 Average Temperature 88 | . 18 . . . . 83 86 . 92 Received Heat Transfer 292 | . . . . . . . 274 18 . Effects 2 | . . . . . . . . . 2 Interference 2 | . . . . . . . . . 2 Siege Activations . | . . . . . . . . . . Martial Activations . | . . . . . . . . . . Shielding Activations . | . . . . . . . . . . Robots Disrupted . | . . . . . . . . . . Combat Hostiles . | . . . . . . . . . . Robots Corrupted 2 | . . . . . . . . . 2 Combat Hostiles 1 | . . . . . . . . . 1 Parts Fried 2 | . . . . . . . . . 2 Impact Corruptions . | . . . . . . . . . . Robots Melted . | . . . . . . . . . . Combat Hostiles . | . . . . . . . . . . Parts Melted 1 | . . 1 . . . . . . . Heat Transferred 483 | . 111 222 . . . . 100 . 50 Parts Sabotaged . | . . . . . . . . . . Parts Stolen . | . . . . . . . . . . Parts Stripped . | . . . . . . . . . . Power Chain Reactions 1 | . . . . . . . . . 1 Alert | -11 -10 -10 -7 -5 -5 -5 -5 -5 -4 ------- Run | Yrd Mat Sub Scr Fac Was Fac Ext Cet Fac Maximum Alert Level 2 | . . . . . . 1 2 1 . Low Security (%) 69 | 100 100 . . 100 100 93 21 36 100 Level 1 30 | . . . . . . 6 78 63 . Level 2 . | . . . . . . . . . . Level 3 . | . . . . . . . . . . Level 4 . | . . . . . . . . . . Level 5 . | . . . . . . . . . . High Security . | . . . . . . . . . . Max Security . | . . . . . . . . . . Peak Influence 428 | . 5 . . 72 112 217 428 237 105 Initial 237 | . . . . . . 50 83 237 105 Average 108 | . . . . 12 74 53 244 213 16 Influence Increases 1989 | . 5 . . 94 182 243 1139 2 324 Destroy 0b10 Robot/C 680 | . . . . 40 . 100 360 . 180 Destroy 0b10 Robot/NC 40 | . 5 . . . . . 30 . 5 Destroy Leader 124 | . . . . 10 . 20 52 . 42 Allied During Kill 8 | . . . . . . . 8 . . Successful Hack 86 | . . . . 22 . 10 18 . 36 Disable Machine 105 | . . . . . . 45 60 . . Destroy Structure 706 | . . . . 22 182 68 386 2 46 Partial Spotted 30 | . . . . . . . 15 . 15 Lose Combat Pursuer 210 | . . . . . . . 210 . . Influence Decreases 1967 | . 5 . . 94 110 144 885 238 491 Entered New Map 382 | . . . . . . 22 88 188 84 Time Decay 1115 | . 5 . . 94 90 112 547 20 247 Lost Part 400 | . . . . . . 10 210 30 150 Lost Ally 70 | . . . . . 20 . 40 . 10 Squads Dispatched 11 | . 1 . . . . 2 4 . 4 Investigation 1 | . . . . . . . 1 . . Extermination 4 | . . . . . . 1 . . 3 Reinforcement 6 | . 1 . . . . 1 3 . 1 Assault . | . . . . . . . . . . Garrison . | . . . . . . . . . . Intercept . | . . . . . . . . . . Searches Triggered . | . . . . . . . . . . Construction Impeded 3 | . . . . . . . 2 . 1 Haulers Reinforced . | . . . . . . . . . . Active Scanning Responses . | . . . . . . . . . . Cargo Convoy Interrupts . | . . . . . . . . . . Stealth | -11 -10 -10 -7 -5 -5 -5 -5 -5 -4 --------- Run | Yrd Mat Sub Scr Fac Was Fac Ext Cet Fac Distress Signals 2 | . . . . . . . 1 1 . Communications Jammed . | . . . . . . . . . . Distress Signals . | . . . . . . . . . . Times Spotted 83 | . 1 8 . 2 6 9 38 5 14 Peak Tracking Total 11 | . 1 4 . 2 2 4 11 5 4 Tactical Retreats 7 | . . . . . . 1 6 . . ECM-based Alert Blocks 4 | . . . . . . 4 . . . Traps | -11 -10 -10 -7 -5 -5 -5 -5 -5 -4 ------- Run | Yrd Mat Sub Scr Fac Was Fac Ext Cet Fac Traps Triggered 5 | . . . . 1 . 1 1 . 2 Indirectly . | . . . . . . . . . . Trap Hack Attempts . | . . . . . . . . . . Triggered . | . . . . . . . . . . Disarmed . | . . . . . . . . . . Reprogrammed . | . . . . . . . . . . Reused . | . . . . . . . . . . Traps Extracted . | . . . . . . . . . . Installed . | . . . . . . . . . . Triggered . | . . . . . . . . . . Machines | -11 -10 -10 -7 -5 -5 -5 -5 -5 -4 ---------- Run | Yrd Mat Sub Scr Fac Was Fac Ext Cet Fac Machines Disabled 7 | . . . . . . 3 4 . . Max in Single Turn 2 | . . . . . . 2 2 . . Energy Cycler 1 | . . . . . . . 1 . . Machines Repaired . | . . . . . . . . . . Machines Dismantled . | . . . . . . . . . . Machines Sabotaged . | . . . . . . . . . . Overloaded Fab Kills . | . . . . . . . . . . Hacking | -11 -10 -10 -7 -5 -5 -5 -5 -5 -4 --------- Run | Yrd Mat Sub Scr Fac Was Fac Ext Cet Fac Machines Accessed 18 | . . . 4 3 . 4 4 . 3 Terminals 10 | . . . . 2 . 2 4 . 2 Fabricators 1 | . . . . . . 1 . . . Repair Stations 1 | . . . . . . . . . 1 Recycling Units . | . . . . . . . . . . Scanalyzers 2 | . . . . 1 . 1 . . . Garrison Access . | . . . . . . . . . . Total Hacks 51 | . . . 16 8 . 9 9 . 9 Successful 33 | . . . 16 7 . 3 3 . 4 Failed 18 | . . . . 1 . 6 6 . 5 Catastrophic 3 | . . . . . . . 3 . . Database Lockouts . | . . . . . . . . . . Manual 11 | . . . . 2 . 2 1 . 6 Terminals 26 | . . . . 6 . 4 9 . 7 Fabricators 3 | . . . . . . 3 . . . Repair Stations 2 | . . . . . . . . . 2 Recycling Units . | . . . . . . . . . . Scanalyzers 4 | . . . . 2 . 2 . . . Garrison Access . | . . . . . . . . . . Terminal Hacks 24 | . . . 16 3 . 1 3 . 1 Record 17 | . . . 15 1 . . . . 1 Open Door 3 | . . . . . . 1 2 . . Terminal Index 1 | . . . . . . . 1 . . Zone Layout 2 | . . . . 2 . . . . . Proto ID Catalog 1 | . . . 1 . . . . . . Fabricator Hacks 1 | . . . . . . 1 . . . Build 1 | . . . . . . 1 . . . Repair Station Hacks 1 | . . . . . . . . . 1 Refit 1 | . . . . . . . . . 1 Recycling Unit Hacks . | . . . . . . . . . . Scanalyzer 3 | . . . . 2 . 1 . . . Retrieve Study 3 | . . . . 2 . 1 . . . Garrison Access Hacks . | . . . . . . . . . . Unauthorized Hacks 4 | . . . . 2 . . . . 2 Terminals 4 | . . . . 2 . . . . 2 Assimilate 1 | . . . . . . . . . 1 Botnet 3 | . . . . 2 . . . . 1 Fabricators . | . . . . . . . . . . Repair Stations . | . . . . . . . . . . Recycling Units . | . . . . . . . . . . Scanalyzers . | . . . . . . . . . . Garrison Access . | . . . . . . . . . . Data Cores Recovered . | . . . . . . . . . . Used . | . . . . . . . . . . Hacking Detections 11 | . . . . 3 . 2 3 . 3 Full Trace Events 1 | . . . . . . . 1 . . Feedback Events . | . . . . . . . . . . Feedback Blocked . | . . . . . . . . . . Robot Schematics Acquired . | . . . . . . . . . . Robots Built . | . . . . . . . . . . Authchips . | . . . . . . . . . . Time . | . . . . . . . . . . Total Robot Build Rating . | . . . . . . . . . . Part Schematics Acquired . | . . . . . . . . . . Parts Built 2 | . . . . . . 2 . . . Authchips . | . . . . . . . . . . Time 139 | . . . . . . 139 . . . Total Part Build Rating 18 | . . . . . . 18 . . . Part Studies Acquired 3 | . . . . 2 . 1 . . . Parts Repaired . | . . . . . . . . . . Time . | . . . . . . . . . . Parts Recycled . | . . . . . . . . . . Recycled Matter . | . . . . . . . . . . Retrieved Matter . | . . . . . . . . . . Retrieved Components . | . . . . . . . . . . Parts Scanalyzed . | . . . . . . . . . . Part Schematics Acquired . | . . . . . . . . . . Parts Damaged . | . . . . . . . . . . Bothacking | -11 -10 -10 -7 -5 -5 -5 -5 -5 -4 ------------ Run | Yrd Mat Sub Scr Fac Was Fac Ext Cet Fac Used RIF Installer . | . . . . . . . . . . Robots Hacked . | . . . . . . . . . . Non-combat . | . . . . . . . . . . Combat . | . . . . . . . . . . Robot Hacks Applied . | . . . . . . . . . . Relay Couplers Released . | . . . . . . . . . . Fabnet Peak Effective % . | . . . . . . . . . . Robots Rewired . | . . . . . . . . . . Allies Hacked . | . . . . . . . . . . Hacks Repelled . | . . . . . . . . . . Allies | -11 -10 -10 -7 -5 -5 -5 -5 -5 -4 -------- Run | Yrd Mat Sub Scr Fac Was Fac Ext Cet Fac Total Allies 7 | . . . . . 1 . 4 . 2 Largest Group 3 | . . . . . 1 . 3 . 2 Highest-Rated Group 101 | . . . . . 31 . 101 . 63 Highest-Rated Ally 56 | . . . . . 31 . 39 . 56 Total Orders . | . . . . . . . . . . Ally Attacks 33 | . . . . . 7 . 24 . 2 Total Damage 488 | . . . . . 102 . 314 . 72 Kills 3 | . . . . . . . 3 . . Allies Corrupted . | . . . . . . . . . . Allies Melted 1 | . . . . . . . 1 . . Intel | -11 -10 -10 -7 -5 -5 -5 -5 -5 -4 ------- Run | Yrd Mat Sub Scr Fac Was Fac Ext Cet Fac Active Infowar (turns) 4898 | . . 125 269 401 184 433 1797 . 1689 Optics 3393 | . . 125 269 . . . 1310 . 1689 Sensors 640 | . . . . . . . . . 640 Terrain 32 | . . . . . . . 32 . . Structural 4061 | . . . . 400 184 433 1597 . 1447 ECM 980 | . . . . 401 184 351 44 . . Robot Analysis Total . | . . . . . . . . . . Derelict Logs Recovered 3 | . . 1 2 . . . . . . Drone Launches . | . . . . . . . . . . Drone Recoveries . | . . . . . . . . . . Exploration | -11 -10 -10 -7 -5 -5 -5 -5 -5 -4 ------------- Run | Yrd Mat Sub Scr Fac Was Fac Ext Cet Fac Turns Passed 8293 | 75 41 301 3077 411 184 433 1828 47 1896 Spaces Moved 4682 | 48 10 140 1850 206 82 240 1359 61 686 Core 94 | 18 . . . . . . . 47 29 Treads 1492 | 30 10 140 1312 . . . . . . Legs 2792 | . . . 538 206 82 240 1055 14 657 Wheels . | . . . . . . . . . . Hover . | . . . . . . . . . . Flight 304 | . . . . . . . 304 . . Fastest Speed 36 | 50 160 160 120 116 116 116 36 50 50 Average Speed 145 | 136 160 160 163 182 168 166 110 66 147 Slowest Speed 750 | 160 160 160 240 200 191 191 196 105 750 Overloaded Moves . | . . . . . . . . . . Propulsion Burnouts . | . . . . . . . . . . Robots Hopped . | . . . . . . . . . . Potential Cave-ins . | . . . . . . . . . . Cave-ins Triggered . | . . . . . . . . . . Exploration Rate (%) 30 | 4 3 11 94 5 73 7 70 23 10 Regions Visited 9 Branch Regions 4 Pre-discovered Areas 1 | . . . 1 . . . . . . Known Exits Taken . | . . . . . . . . . . Unknown Exits Taken 7 | 1 1 1 1 . . 1 1 1 . Scrap Searched 10 | . . . 10 . . . . . . Spaces Dug 34 | . . . . . . 3 27 2 2 Terrain Destroyed 597 | . . . . 24 186 42 312 2 31 Melee 7 | . . . . . . 3 . 2 2 Projectile 9 | . . . . . . . 1 . 8 AOE 581 | . . . . 24 186 39 311 . 21 Terrain Rammed . | . . . . . . . . . . Walls Destroyed . | . . . . . . . . . . Machines Disabled . | . . . . . . . . . . Actions | -11 -10 -10 -7 -5 -5 -5 -5 -5 -4 --------- Run | Yrd Mat Sub Scr Fac Was Fac Ext Cet Fac Total 5902 | 55 33 201 1901 238 98 261 1611 64 1440 Wait 793 | . 23 37 . 17 1 4 109 . 602 Move 4674 | 47 9 139 1849 206 81 239 1358 60 686 Hop . | . . . . . . . . . . Pick Up 89 | 2 . 9 17 5 1 4 23 . 28 Fast Attach 18 | 5 . . 4 . . . 5 . 4 Attach 81 | 1 . 2 6 8 1 3 28 1 31 Detach 20 | . . . 3 . . 1 12 1 3 Swap 39 | . . 2 6 1 . 2 17 . 11 Drop 29 | . . 3 16 . . . 9 . 1 Fire 105 | . 1 9 . 1 14 3 27 . 50 Melee 43 | . . . . . . 5 23 2 13 Ram 11 | . . . . . . . . . 11 Kick . | . . . . . . . . . . Crush . | . . . . . . . . . . Escape Stasis . | . . . . . . . . . . Rewire . | . . . . . . . . . . Trap . | . . . . . . . . . . Miscellaneous . | . . . . . . . . . . Route ------- -11/Scrapyard -10/Materials -10/Subcaves -7/Scraptown (discovered 2 exits: *Fac x2) -5/Factory -5/Waste -5/Factory -5/Extension (discovered 3 exits: *Fac x2 / [*Cet]) -5/Cetus -4/Factory History --------- Turn | Location | Event 27 | -11/Scrapyard | Discovered new exit (range 15) 76 | -11/Scrapyard | Entered Materials 76 | -10/Materials | Discovered new exit (range 7) 77 | -10/Materials | Met a group of wandering Federalists 117 | -10/Materials | Entered Subcaves 117 | -10/Subcaves | Accompanied by 4 allies 118 | -10/Subcaves | Continued accompanying wandering Federalists (5) 118 | -10/Subcaves | Approached by a straggling Scientist 265 | -10/Subcaves | Learned 2 Materials zone layouts 330 | -10/Subcaves | Lost 5 allies 418 | -10/Subcaves | Entered Scraptown 605 | -7/Scraptown | Heard Great Nut preacher, LISTEN AND RECITE! 917 | -7/Scraptown | Visited Cave Peace 979 | -7/Scraptown | Visited Comm Corps 987 | -7/Scraptown | Build established: Mutant 1062 | -7/Scraptown | Scanned Subdweller tech in exchange for log data 1067 | -7/Scraptown | Learned Research terminal intel 1069 | -7/Scraptown | Learned Factory stockpile data 1167 | -7/Scraptown | Discovered new exit (range 7) 1352 | -7/Scraptown | Visited Cyclists 1399 | -7/Scraptown | Learned location of Extension (-5) 1690 | -7/Scraptown | Visited TADAMA 1738 | -7/Scraptown | Visited Bundlers 1890 | -7/Scraptown | Visited Symbiants 1962 | -7/Scraptown | Visited IN-MT5's Study 2002 | -7/Scraptown | Visited UFD Registry 2002 | -7/Scraptown | Registered with UFD as "Fiberspawn" 2066 | -7/Scraptown | Visited Scrap Suit Storage 2125 | -7/Scraptown | Visited Chapter 10 2173 | -7/Scraptown | Visited Observation Area 2336 | -7/Scraptown | Discovered new exit (range 3) 2424 | -7/Scraptown | Visited Science Testing Area 2470 | -7/Scraptown | Visited Research Penetration Think Tank 2517 | -7/Scraptown | Visited DA-N13 Charitable Foundation 2526 | -7/Scraptown | Found DCF Scrap (30 items) 2660 | -7/Scraptown | Visited Junk Repository 2708 | -7/Scraptown | Visited Science Guys 2781 | -7/Scraptown | Visited Abandonware Association 2836 | -7/Scraptown | Build established: Derelict-Mutant 3375 | -7/Scraptown | Met Optimus 3375 | -7/Scraptown | Accepted into 0bPrime 3495 | -7/Scraptown | Entered Factory 3495 | -5/Factory | Evolved 10 slots: Power x1, Propulsion x3, Utility x6 3906 | -5/Factory | Sucked down chute 3906 | -5/Factory | Entered Waste 3907 | -5/Waste | Met a frightened Derelict 3918 | -5/Waste | Spotted C-40 Crusher 3921 | -5/Waste | EMP discharged 3938 | -5/Waste | Destroyed C-40 Crusher 3956 | -5/Waste | Spotted C-40 Crusher 3957 | -5/Waste | Spotted C-40 Crusher 3960 | -5/Waste | Destroyed C-40 Crusher 3970 | -5/Waste | Destroyed C-40 Crusher 3983 | -5/Waste | Spotted C-40 Crusher 3990 | -5/Waste | Spotted C-40 Crusher 3992 | -5/Waste | Destroyed C-40 Crusher 3995 | -5/Waste | Destroyed C-40 Crusher 4007 | -5/Waste | Spotted C-40 Crusher 4013 | -5/Waste | Destroyed C-40 Crusher 4021 | -5/Waste | EMP discharged 4021 | -5/Waste | System corruption reached 10% 4062 | -5/Waste | Discovered new exit (range 15) 4090 | -5/Waste | Entered Factory 4390 | -5/Factory | Fabricated Adv. Force Booster? 4465 | -5/Factory | Discovered new exit (range 9) 4523 | -5/Factory | Entered Extension 4587 | -5/Extension | Disrupted transfer network 4620 | -5/Extension | Rescued a captive Derelict 4621 | -5/Extension | Rescued a captive Derelict 4635 | -5/Extension | Rescued a captive Derelict 5132 | -5/Extension | Build established: Scavenger-Mutant 5267 | -5/Extension | Spotted B-75 Beast 5309 | -5/Extension | Energy Cycler disabled 5309 | -5/Extension | Rescued a captive Derelict 5310 | -5/Extension | Rescued a captive Derelict 5310 | -5/Extension | Rescued a captive Derelict 5310 | -5/Extension | Rescued a captive Derelict 5629 | -5/Extension | Spotted B-75 Beast 5638 | -5/Extension | Discovered new exit (range 17) 6104 | -5/Extension | Lost 5 parts (1p3n1w) 6274 | -5/Extension | Extracted ID and sensor layout for unrecognized location from A7's data core 6333 | -5/Extension | Discovered new exit (range 16) 6335 | -5/Extension | Discovered new exit (range 14) 6351 | -5/Extension | Entered Cetus 6352 | -5/Cetus | Lost 6 parts (2p3n1u) 6364 | -5/Cetus | Spotted Cetus Guard 6365 | -5/Cetus | Spotted Cetus Guard 6375 | -5/Cetus | Spotted Cetus Guard 6375 | -5/Cetus | Spotted Cetus Guard 6391 | -5/Cetus | Discovered new exit (range 16) 6398 | -5/Cetus | Entered Factory 6398 | -4/Factory | Evolved 2 slots: Power x1, Propulsion x1 6412 | -4/Factory | Lost 3 parts (2n1u) 7714 | -4/Factory | System corruption reached 10% 7777 | -4/Factory | Lost 8 parts (2p3n2u1w) 7918 | -4/Factory | Core integrity fell below 50% 7944 | -4/Factory | Core integrity fell below 20% 7951 | -4/Factory | Lost 15 parts (4p2n5u4w) 8294 | -4/Factory | Destroyed by H-77 Assassin with Coil Gun Last Messages --------------- 08206_ Acquired Imp. Target Analyzer. 08208_ Acquired Imp. Heat Sink. Note that some effects only stack once, the second-best part only contributing half its effect, e.g. attaching both Imp. Target Analyzer and Imp. Target Analyzer does not fully combine the effects of both (all such effects are marked ). 08251_ Penetrated by Slug. 08254_ Slug penetrates Wall. 08267_ Penetrated by Slug. 08270_ Slug penetrates Wall. 08270_ Penetrated by Slug. 08273_ Slug penetrates Wall. 08273_ Penetrated by Slug. 08273_ Slug penetrates Wall. 08282_ #E3XN6V3H/T=A4MENG%VSE YWKZ7413CBMNAKB 08290_ Slug penetrates Wall. 08290_ Slug penetrates A-15 Conveyor. 08292_ Triggered Shock Trap. 08292_ The floor emits a surge of raw power. 08292_ System corrupted (+2). Map ----- +----------------------------------------------------+ | ?????????????????????????????????????????????????? | | ?????????????????????????????????????????????????? | | ?????????????????????????????????????????????????? | | ?????????????????????????????????????????????????? | | ?????????????????????????????????????????????????? | | ?????????????????????????????????????????????????? | | ?????????????????????????????????????????????????? | | ?????????????????????????????????????????????????? | | ?????????????????????????????????????????????????? | | ?????????????????????????????????????????????????? | | ?????????????????????????????????????????????????? | | ????????????????????????###################??????? | | ????????????????????????? # ????? | | ??????????????H?????????? # ???? | | ?????????????????????????? # | | ?????????????????????????? ] # ] """ | | ??????????????????????????? ?# """"" | | ??????????????????????????? ?# """"" | | ???????????????????????????? ??# | | ???????????????????????????? ??# | | ????????????????????????????? ???# ? | | ????????????????????????????? ???#= ""T??? | | ?????????????????????????????? ????# "????? | | ?????????????????????????????? ????? | | ???????????# ##############+########+######### | | ???????? @ | | ???????? | | ???????? | | ????????? | | ????????? ^ | | ?????????? ^ A | | ?????????? ^ h | | ??????????############+########+########+######### | | ????????????????????????????????????? # | | ????????????????????????????????????? + "" | | ????????????????????????????????????? # "" | | ????????????????????????????????????? # """ | | ????????????????????????????????????? # """ | | ????????????????????????????????????? # """ | | ????????????????????????????????????? # | | ????????????????????????????????????? # | | ????????????????????????????????????? # | | ????????????????????????????????????? # | | ????????????????????????????????????? # | | ????????????????????????????????????? # | | ?????????????????????????????????????############# | | ?????????????????????????????????????############# | | ?????????????????????????????????????????????????? | | ?????????????????????????????????????????????????? | | ?????????????????????????????????????????????????? | +----------------------------------------------------+ Best States ------------- Heat Dissipation 85 Energy Generation 37 Energy Capacity 550 Matter Stores 300 Matter Capacity 300 Sight Range 21 Robot Scan Range 16 Terrain Scan Range 14 Terrain Scan Density 85 ECM Strength 2 Armor Coverage 225 Resistance: EX 50 Phase Shifting 10 Evasion (%) 67 Targeting Accuracy 6 Melee Accuracy 8 Target Analysis 9 Recoil Reduction 2 Offensive Hacking 11 Item Schematics ----------------- None Robot Schematics ------------------ None Fabricated ------------ Adv. Force Booster | x2 | -5/Factory | Preloaded Repaired ---------- Nothing Studied --------- Carbon-fiber Leg | -5/Factory | Hacked Imp. Deuterium Engine | -5/Factory | Hacked Missile Launcher | -5/Factory | Hacked Alien Tech Used ----------------- None Achievements -------------- Ew, Corruption Explosive Keycard Fancy Inventory Please Form A Line Use The Force Challenges ------------ None Game ------ Seed DisruptionHeavyImmobilizer Manual? 0 Play Time 01:59:28 Cumulative 21.2 hours Start 2026.01.10 @ 16:06:45 End 2026.01.10 @ 18:27:10 Sessions 1 Manual Loads 0 Difficulty Rogue Special Mode None Game No. 22 Rogue 22 Adventurer 0 Explorer 0 Win Type - Total 0 Types 0/0/0/0/0/0/0/0/0/0 Lore% 23 Gallery% 18 Achievement% 19 Wizard Run 0 Options --------- Layout 0 ASCII 0 Keyboard 0 Movement Mouse Keybinds 0 Fullscreen 2 Font 36/Smallcaps Map View 76x50 Zoom Use 0% Tactical HUD 1 Map Filters NONE Filters NONE Steam 1 RUN: 93966854-f75c-47fd-8154-16603f953bcd